bitfinex-derivatives/quotes_BTCF0:USTF0_20241117
["timestamp","ask_amount","ask_price","bid_price","bid_amount"]
[1731876820294,0.22089468,89686.0,89685.0,0.055747]
[1731876820479,0.055747,89686.0,89685.0,0.055747]
[1731876820680,0.22086871,89686.0,89685.0,0.055747]
[1731876822597,0.30751847,89686.0,89685.0,0.055747]
[1731876822895,0.10997091,89686.0,89685.0,0.055747]
[1731876823094,0.25388838,89686.0,89685.0,0.055747]
[1731876823291,0.10997091,89686.0,89685.0,0.055747]
[1731876823490,0.055747,89686.0,89685.0,0.055747]
[1731876823697,0.10997266,89686.0,89685.0,0.055747]
[1731876824692,0.05422566,89686.0,89683.0,0.00011065]
[1731876824894,0.03234335,89690.0,89683.0,0.00011065]
[1731876824895,0.055748,89684.0,89683.0,0.00011065]
[1731876825092,0.10997366,89684.0,89683.0,0.00011065]
[1731876825288,0.30816261,89684.0,89683.0,0.00011065]
[1731876827202,0.30816261,89684.0,89683.0,0.05585965]
[1731876827417,0.10997366,89684.0,89683.0,0.05585965]
[1731876828202,0.10997366,89684.0,89683.0,0.00011065]
[1731876828503,0.23964378,89684.0,89683.0,0.00011065]
[1731876828696,0.23964378,89684.0,89683.0,2.58e-05]
[1731876829004,0.055748,89684.0,89683.0,2.58e-05]
[1731876829200,0.39064865,89684.0,89683.0,2.58e-05]
[1731876830792,0.23964378,89684.0,89683.0,2.58e-05]
[1731876830996,0.87416378,89684.0,89683.0,2.58e-05]
[1731876831299,1.02539735,89684.0,89683.0,2.58e-05]
[1731876831508,0.87416378,89684.0,89683.0,2.58e-05]
[1731876831697,0.87428753,89684.0,89683.0,2.58e-05]
[1731876831892,0.690268,89684.0,89683.0,2.58e-05]
[1731876832492,0.390268,89684.0,89683.0,2.58e-05]
[1731876832998,0.64193597,89684.0,89683.0,2.58e-05]
[1731876833299,0.44450484,89684.0,89683.0,2.58e-05]
[1731876834396,0.390268,89684.0,89683.0,2.58e-05]
[1731876834925,0.055748,89684.0,89683.0,2.58e-05]
[1731876840197,0.3608,89690.0,89683.0,2.58e-05]
[1731876840407,0.3608,89690.0,89686.0,0.055746]
[1731876840408,0.416544,89690.0,89686.0,0.055746]
[1731876841108,0.416544,89690.0,89683.0,0.0638258]
[1731876841312,0.3608,89690.0,89687.0,0.055746]
[1731876841490,0.055746,89688.0,89687.0,0.055746]
[1731876842504,0.416546,89688.0,89687.0,0.055746]
[1731876842905,0.055748,89685.0,89683.0,2.58e-05]
[1731876844307,0.08589374,89684.0,89683.0,2.58e-05]
[1731876845409,0.08589374,89684.0,89660.0,0.0305]
[1731876845410,0.97207643,89684.0,89660.0,0.0305]
[1731876845707,0.055765,89656.0,89655.0,0.00167281]
[1731876846608,0.05585198,89656.0,89655.0,0.00181428]
[1731876847309,0.05585198,89656.0,89655.0,0.00014147]
[1731876848707,0.05585198,89656.0,89647.0,0.00056]
[1731876848708,0.05577,89648.0,89647.0,0.00056]
[1731876848908,0.58116738,89648.0,89647.0,0.00056]
[1731876849214,0.58115804,89648.0,89647.0,0.00056]
[1731876849507,0.44887,89648.0,89647.0,0.00056]
[1731876850908,0.41657,89648.0,89647.0,0.00056]
[1731876853114,8.698e-05,89656.0,89648.0,0.05577]
[1731876853312,8.698e-05,89656.0,89647.0,0.00056]
[1731876853313,8.698e-05,89656.0,89655.0,0.14165974]
[1731876853614,8.698e-05,89656.0,89655.0,0.23745974]
[1731876854301,0.05577,89648.0,89647.0,0.00056]
[1731876854806,0.05577,89648.0,89647.0,0.056331]
[1731876855899,0.05577,89648.0,89647.0,0.00056]
[1731876857613,0.05577,89648.0,89647.0,0.056331]
[1731876858417,8.698e-05,89656.0,89654.0,0.055766]
[1731876858618,8.698e-05,89656.0,89647.0,0.3352]
[1731876858619,8.698e-05,89656.0,89647.0,0.00056]
[1731876858916,0.055767,89654.0,89650.0,0.055769]
[1731876859314,8.698e-05,89656.0,89650.0,0.055769]
[1731876859513,0.055771,89648.0,89646.0,0.13831531]
[1731876859817,8.698e-05,89656.0,89647.0,0.0958]
[1731876860117,0.055769,89651.0,89647.0,0.0958]
[1731876860316,8.698e-05,89656.0,89647.0,0.0958]
[1731876860317,0.055769,89650.0,89647.0,0.0958]
[1731876860719,0.05577,89649.0,89647.0,0.0958]
[1731876861516,0.05577,89649.0,89648.0,0.0958]
[1731876864421,0.05577,89649.0,89648.0,0.15157]
[1731876868325,0.05577,89649.0,89648.0,0.05577]
[1731876868629,0.05577,89649.0,89648.0,0.15157]
[1731876870215,8.698e-05,89656.0,89648.0,0.0958]
[1731876870408,0.055766,89655.0,89648.0,0.0958]
[1731876870610,8.698e-05,89656.0,89655.0,0.055766]
[1731876880421,0.13151033,89656.0,89655.0,0.055766]
[1731876880621,8.698e-05,89656.0,89655.0,0.055766]
[1731876881927,8.698e-05,89656.0,89655.0,0.14165974]
[1731876884822,8.698e-05,89656.0,89655.0,0.16397764]
[1731876886333,8.698e-05,89656.0,89655.0,0.27551569]
[1731876887035,7.59e-06,89656.0,89655.0,0.27551569]
[1731876889157,7.59e-06,89656.0,89655.0,0.16397764]
[1731876890260,0.13198025,89656.0,89655.0,0.1179979]
[1731876890453,0.03160759,89656.0,89655.0,0.1179979]
[1731876890653,0.19619563,89656.0,89655.0,0.1179979]
[1731876890855,0.25196063,89656.0,89655.0,0.1179979]
[1731876891161,0.21930347,89656.0,89655.0,0.1179979]
[1731876893755,0.21930347,89656.0,89655.0,0.0223179]
[1731876894062,0.21930347,89656.0,89655.0,0.1179979]
[1731876894063,0.08737259,89656.0,89655.0,0.1179979]
[1731876894558,0.055769,89650.0,89649.0,0.3608]
[1731876894865,0.055769,89650.0,89649.0,0.45648]
[1731876895560,0.18770487,89650.0,89649.0,0.09568]
[1731876895863,0.055769,89650.0,89649.0,0.09568]
[1731876899873,0.16458804,89655.0,89647.0,0.0314474]
[1731876900059,0.05577,89649.0,89648.0,0.09572]
[1731876900561,0.055771,89647.0,89646.0,0.02232157]
[1731876900755,0.16458804,89652.0,89640.0,0.64785904]
[1731876900959,0.16458804,89652.0,89640.0,0.3608]
[1731876900960,0.055775,89641.0,89640.0,0.3608]
[1731876901154,0.12494883,89643.0,89640.0,0.3608]
[1731876901355,0.031,89643.0,89640.0,0.3608]
[1731876901762,0.055775,89641.0,89640.0,0.3608]
[1731876901957,0.055776,89639.0,89638.0,0.00012743]
[1731876902164,0.055776,89639.0,89637.0,0.0016732]
[1731876902165,0.0328,89640.0,89637.0,0.0016732]
[1731876902462,0.087277,89638.0,89637.0,0.0016732]
[1731876903159,0.05578,89633.0,89632.0,0.18161374]
[1731876903657,0.05578,89633.0,89632.0,0.09572]
[1731876904359,0.05578,89633.0,89632.0,0.09580336]
[1731876905859,0.05578,89633.0,89632.0,0.15158336]
[1731876906368,0.05578,89633.0,89632.0,0.09580336]
[1731876907268,0.05578,89633.0,89632.0,8.336e-05]
[1731876907471,0.08704556,89633.0,89632.0,8.336e-05]
[1731876907768,0.05578,89633.0,89632.0,8.336e-05]
[1731876910277,0.3905,89633.0,89632.0,8.336e-05]
[1731876910573,0.055789,89618.0,89617.0,0.05579]
[1731876911157,0.055789,89618.0,89616.0,0.02232157]
[1731876911363,0.055789,89618.0,89617.0,0.00012632]
[1731876912159,0.056789,89618.0,89617.0,0.01012632]
[1731876912769,0.057789,89618.0,89617.0,0.01612632]
[1731876914271,0.056789,89618.0,89617.0,0.01012632]
[1731876914973,0.055789,89618.0,89617.0,0.00012632]
[1731876915566,0.06309644,89623.0,89617.0,0.05591532]
[1731876915567,0.11888244,89623.0,89617.0,0.05591532]
[1731876915867,0.11888244,89623.0,89622.0,0.08589374]
[1731876916178,0.06309644,89623.0,89622.0,0.08589374]
[1731876916377,0.36136001,89624.0,89622.0,0.14168074]
[1731876916574,0.3608,89624.0,89622.0,0.14168074]
[1731876916879,0.36140001,89637.0,89623.0,0.44630223]
[1731876916880,0.00056001,89637.0,89623.0,0.44630223]
[1731876917176,0.3608,89648.0,89641.0,0.055775]
[1731876917177,0.055771,89647.0,89641.0,0.055775]
[1731876917477,0.055774,89643.0,89642.0,0.0956]
[1731876917677,0.3608,89648.0,89644.0,0.055773]
[1731876917678,0.416571,89648.0,89644.0,0.055773]
[1731876918470,0.3608,89648.0,89642.0,0.18149374]
[1731876918777,0.3608,89648.0,89646.0,0.055771]
[1731876923478,0.3608,89648.0,89642.0,0.21275383]
[1731876923479,0.0319,89655.0,89644.0,0.3608]
[1731876923693,0.0319,89655.0,89649.0,0.08589374]
[1731876923877,7.59e-06,89656.0,89654.0,0.055767]
[1731876924077,7.59e-06,89656.0,89655.0,0.0956]
[1731876925291,7.59e-06,89656.0,89651.0,0.0956]
[1731876925491,0.055768,89652.0,89651.0,0.0956]
[1731876926182,0.055771,89647.0,89645.0,0.0956]
[1731876926383,0.3608,89646.0,89645.0,0.0956]
[1731876928884,0.0328,89651.0,89641.0,0.08589374]
[1731876929091,0.0328,89651.0,89642.0,0.0956]
[1731876929276,0.0328,89651.0,89649.0,0.05577]
[1731876929477,0.36080759,89656.0,89648.0,0.08589374]
[1731876929478,7.59e-06,89656.0,89651.0,0.055768]
[1731876929983,7.59e-06,89656.0,89651.0,0.151368]
[1731876930282,7.59e-06,89656.0,89655.0,0.14165974]
[1731876931494,7.59e-06,89656.0,89655.0,0.08589374]
[1731876932286,7.59e-06,89656.0,89654.0,0.055766]
[1731876933279,0.055768,89652.0,89647.0,0.05577]
[1731876933484,0.055769,89651.0,89648.0,0.0956]
[1731876934385,0.055767,89654.0,89641.0,0.36188]
[1731876934586,0.0305,89654.0,89641.0,0.4564]
[1731876934977,0.0305,89654.0,89641.0,0.54229374]
[1731876935894,0.0305,89654.0,89643.0,0.055773]
[1731876936276,0.055771,89648.0,89643.0,0.055773]
[1731876936686,0.055771,89648.0,89644.0,0.055773]
[1731876938090,0.055771,89648.0,89641.0,0.54337374]
[1731876938281,0.055771,89648.0,89646.0,0.055771]
[1731876939581,0.0305,89654.0,89646.0,0.055771]
[1731876940778,0.055769,89650.0,89646.0,0.055771]
[1731876946487,0.36136001,89655.0,89649.0,0.08589374]
[1731876946685,0.36136001,89655.0,89650.0,0.055769]
[1731876946686,0.16513027,89651.0,89650.0,0.055769]
[1731876946892,0.16513027,89652.0,89650.0,0.055769]
[1731876947095,0.16513027,89652.0,89642.0,0.18141374]
[1731876947292,0.05577,89649.0,89645.0,0.055772]
[1731876947791,0.05577,89649.0,89647.0,0.055771]
[1731876948101,0.16513027,89651.0,89647.0,0.055771]
[1731876948595,0.16513027,89651.0,89649.0,0.055769]
[1731876948895,0.16513027,89652.0,89649.0,0.055769]
[1731876950490,0.19718111,89652.0,89649.0,0.055769]
[1731876951182,0.19718111,89652.0,89651.0,0.055769]
[1731876951589,0.05424534,89652.0,89651.0,0.055769]
[1731876951787,0.25142645,89655.0,89649.0,0.44777374]
[1731876951986,0.16509656,89651.0,89649.0,0.44669374]
[1731876952295,0.05424534,89654.0,89649.0,0.44669374]
[1731876952296,0.16509656,89654.0,89649.0,0.44669374]
[1731876952600,7.59e-06,89656.0,89655.0,0.055766]
[1731876952796,7.59e-06,89656.0,89655.0,0.151286]
[1731876954286,7.59e-06,89656.0,89655.0,0.09552]
[1731876954287,0.05577259,89656.0,89655.0,0.09552]
[1731876954503,0.11000988,89656.0,89655.0,0.09552]
[1731876955298,0.14150988,89656.0,89655.0,0.09552]
[1731876955501,0.33869099,89656.0,89655.0,0.09552]
[1731876955700,0.14150988,89656.0,89655.0,0.09552]
[1731876955885,0.2844537,89656.0,89655.0,0.09552]
[1731876956088,0.33869099,89656.0,89655.0,0.09552]
[1731876957191,0.33869645,89656.0,89655.0,0.09552]
[1731876957797,0.14151534,89656.0,89655.0,0.09552]
[1731876958396,0.08727259,89656.0,89655.0,0.09552]
[1731876959893,0.08727259,89656.0,89654.0,0.055767]
[1731876960201,0.03150759,89656.0,89654.0,0.055767]
[1731876960788,7.59e-06,89656.0,89654.0,0.055767]
[1731876961700,7.59e-06,89656.0,89654.0,0.08725063]
[1731876961999,0.00167357,89659.0,89658.0,0.055764]
[1731876962205,0.00167357,89659.0,89658.0,0.14165774]
[1731876963003,0.00167357,89659.0,89658.0,0.08589374]
[1731876963199,0.055765,89657.0,89654.0,0.08724963]
[1731876963603,0.18769072,89657.0,89655.0,0.055766]
[1731876963801,0.13192572,89656.0,89655.0,0.055766]
[1731876964009,0.00167357,89659.0,89655.0,0.055766]
[1731876964211,0.13191801,89656.0,89655.0,0.055766]
[1731876964505,0.13191801,89658.0,89652.0,0.055768]
[1731876964702,0.13191801,89657.0,89652.0,0.08713076]
[1731876964900,0.13191801,89656.0,89652.0,0.03136276]
[1731876965204,0.13191801,89657.0,89651.0,0.08589374]
[1731876965406,0.13191801,89656.0,89651.0,0.08589374]
[1731876965597,0.13191801,89655.0,89651.0,0.08589374]
[1731876965802,0.13191801,89657.0,89654.0,0.3608]
[1731876966103,0.13191801,89658.0,89656.0,0.14165874]
[1731876966499,0.13191801,89657.0,89656.0,0.14165874]
[1731876966697,0.13359158,89659.0,89656.0,0.08589374]
[1731876966901,0.00167357,89659.0,89658.0,0.055764]
[1731876967596,0.13359158,89659.0,89658.0,0.055764]
[1731876967796,0.00167357,89659.0,89658.0,0.055764]
[1731876970905,0.00167357,89659.0,89658.0,0.0558657]
[1731876971219,0.00167357,89659.0,89658.0,0.16740002]
[1731876971799,8.544e-05,89672.0,89670.0,0.055757]
[1731876972012,8.544e-05,89672.0,89671.0,0.45628]
[1731876972408,8.544e-05,89672.0,89671.0,0.81708]
[1731876972712,0.0304,89687.0,89672.0,0.055755]
[1731876972713,0.13191801,89687.0,89672.0,0.055755]
[1731876972917,0.13191801,89688.0,89685.0,0.08589374]
[1731876973113,0.16281801,89689.0,89688.0,0.055746]
[1731876973423,0.0309,89689.0,89688.0,0.055746]
[1731876973600,0.0309,89689.0,89686.0,0.09548]
[1731876973797,0.0309,89689.0,89686.0,0.151227]
[1731876973798,0.13177307,89687.0,89686.0,0.151227]
[1731876974107,0.0309,89689.0,89686.0,0.151147]
[1731876974108,0.13177307,89688.0,89686.0,0.151147]
[1731876974307,0.0309,89689.0,89686.0,0.0954]
[1731876974308,0.13177311,89687.0,89686.0,0.0954]
[1731876974507,0.55812336,89700.0,89686.0,0.0954]
[1731876974508,0.13177311,89692.0,89686.0,0.0954]
[1731876974814,0.13177311,89693.0,89691.0,0.14163774]
[1731876975012,0.13177311,89694.0,89693.0,0.055742]
[1731876975207,0.13177311,89694.0,89693.0,0.14163574]
[1731876975409,0.13177311,89696.0,89693.0,0.08589374]
[1731876975705,0.13177311,89698.0,89697.0,0.05574]
[1731876975912,0.00014225,89700.0,89697.0,0.15114]
[1731876976407,0.13178727,89700.0,89697.0,0.0954]
[1731876976597,0.00014225,89700.0,89698.0,0.055739]
[1731876976798,0.055739,89699.0,89697.0,0.0954]
[1731876977313,0.18738402,89699.0,89697.0,0.0954]
[1731876977501,0.055739,89699.0,89697.0,0.0954]
[1731876978011,0.13178727,89700.0,89695.0,0.3608]
[1731876978217,0.13178727,89700.0,89691.0,0.0954]
[1731876978218,0.055743,89692.0,89691.0,0.0954]
[1731876978519,0.055743,89692.0,89679.0,0.08589374]
[1731876978520,0.3608,89693.0,89684.0,0.0954]
[1731876978704,0.3608,89685.0,89684.0,0.0954]
[1731876978904,0.055747,89687.0,89684.0,0.0954]
[1731876979104,0.3608,89685.0,89684.0,0.11770777]
[1731876979408,0.3608,89685.0,89673.0,0.3608]
[1731876979716,0.49230624,89685.0,89674.0,0.0954]
[1731876979912,0.13150624,89686.0,89679.0,0.055751]
[1731876980305,0.13150624,89686.0,89674.0,0.0954]
[1731876980507,0.055751,89680.0,89675.0,0.055753]
[1731876980813,0.055751,89680.0,89676.0,0.055753]
[1731876981312,0.3608,89678.0,89676.0,0.055753]
[1731876981716,0.055751,89679.0,89676.0,0.055753]
[1731876981913,0.3608,89677.0,89676.0,0.055753]
[1731876982417,0.055751,89679.0,89677.0,0.055752]
[1731876982609,0.3608,89678.0,89677.0,0.055752]
[1731876982813,0.18725524,89683.0,89674.0,0.0954]
[1731876983117,0.3608,89683.0,89674.0,0.0954]
[1731876983626,0.055751,89679.0,89674.0,0.0954]
[1731876983914,0.055751,89679.0,89675.0,0.151153]
[1731876984102,0.055751,89679.0,89675.0,0.0954]
[1731876984312,0.055751,89679.0,89676.0,0.055753]
[1731876984710,0.055751,89679.0,89677.0,0.055752]
[1731876986223,0.055751,89679.0,89676.0,0.02230777]
[1731876986224,0.13150624,89679.0,89676.0,0.0954]
[1731876986427,0.3608,89683.0,89676.0,0.0954]
[1731876986428,0.13150624,89677.0,89676.0,0.0954]
[1731876986726,0.055752,89678.0,89676.0,0.0954]
[1731876987020,0.055752,89678.0,89676.0,0.151153]
[1731876987319,0.13155319,89677.0,89676.0,0.151153]
[1731876987520,0.055752,89678.0,89676.0,0.0954]
[1731876988625,0.22073167,89678.0,89676.0,0.0954]
[1731876988820,0.16497967,89677.0,89676.0,0.0954]
[1731876989017,0.16497967,89679.0,89676.0,0.0954]
[1731876989211,0.416549,89682.0,89680.0,0.05575]
[1731876989407,0.05423132,89681.0,89680.0,0.05575]
[1731876989726,0.36136001,89682.0,89680.0,0.05575]
[1731876990017,0.13164299,89681.0,89680.0,0.05575]
[1731876990220,0.3608,89682.0,89680.0,0.05575]
[1731876990721,0.13165269,89681.0,89680.0,0.05575]
[1731876991227,0.13165269,89686.0,89680.0,0.3608]
[1731876991532,0.13165269,89688.0,89687.0,0.055746]
[1731876991823,0.16235269,89691.0,89685.0,0.08589374]
[1731876992125,0.16235269,89691.0,89690.0,0.055744]
[1731876992426,0.0307,89691.0,89690.0,0.151144]
[1731876992726,0.16235269,89691.0,89690.0,0.151144]
[1731876992931,0.0307,89691.0,89690.0,0.151144]
[1731876993418,0.13165269,89691.0,89690.0,0.0954]
[1731876993720,0.13165269,89693.0,89692.0,0.055743]
[1731876994520,0.0314,89696.0,89692.0,0.055743]
[1731876995118,0.13168472,89693.0,89692.0,0.055743]
[1731876995420,0.13168472,89694.0,89690.0,0.0954]
[1731876995614,0.16308472,89696.0,89690.0,0.12795496]
[1731876995921,0.16308472,89696.0,89694.0,0.055741]
[1731876995922,0.13168472,89695.0,89694.0,0.055741]
[1731876996318,0.16308472,89696.0,89694.0,0.055741]
[1731876996628,0.13168472,89695.0,89694.0,0.055741]
[1731876997527,0.0314,89696.0,89694.0,0.055741]
[1731876997714,0.13174408,89695.0,89694.0,0.055741]
[1731876997915,0.0314,89696.0,89694.0,0.055741]
[1731876998416,0.055744,89691.0,89690.0,0.0954]
[1731876998822,0.13176738,89692.0,89680.0,0.4388644]
[1731876999123,0.055749,89683.0,89681.0,0.09536]
[1731876999328,0.031,89682.0,89680.0,0.0791444]
[1731876999526,0.031,89682.0,89681.0,0.09536]
[1731876999710,0.031,89682.0,89681.0,0.15111]
[1731877000115,0.16277967,89682.0,89681.0,0.15111]
[1731877000416,0.031,89682.0,89681.0,0.15111]
[1731877000616,0.1628144,89682.0,89681.0,0.15111]
[1731877000814,0.031,89682.0,89681.0,0.15111]
[1731877001219,0.1628144,89682.0,89681.0,0.15111]
[1731877001417,0.2185634,89682.0,89681.0,0.15111]
[1731877003629,0.086749,89682.0,89681.0,0.15111]
[1731877004016,0.16480696,89685.0,89682.0,0.055749]
[1731877004222,0.16480696,89685.0,89684.0,0.14164174]
[1731877004421,0.16480696,89686.0,89685.0,0.055747]
[1731877005325,0.22055396,89686.0,89685.0,0.151067]
[1731877005539,0.055747,89686.0,89685.0,0.09532]
[1731877006318,0.055747,89686.0,89685.0,0.151067]
[1731877006617,0.10996926,89686.0,89685.0,0.151067]
[1731877010626,0.16486907,89689.0,89685.0,0.09532]
[1731877010823,0.16486907,89689.0,89688.0,0.055746]
[1731877011626,0.22061407,89689.0,89688.0,0.055746]
[1731877011821,0.055745,89689.0,89688.0,0.055746]
[1731877012333,0.16486907,89690.0,89685.0,0.09532]
[1731877012533,0.52622908,89692.0,89690.0,0.055744]
[1731877012724,0.16486907,89691.0,89690.0,0.055744]
[1731877012925,0.22061107,89693.0,89691.0,0.055744]
[1731877013334,0.16486907,89692.0,89691.0,0.055744]
[1731877013629,0.055742,89693.0,89691.0,0.055744]
[1731877013630,0.416542,89693.0,89691.0,0.055744]
[1731877013826,0.055743,89692.0,89691.0,0.055744]
[1731877014034,0.2206234,89692.0,89691.0,0.055744]
[1731877015325,0.10996512,89692.0,89691.0,0.055744]
[1731877018130,0.055748,89686.0,89685.0,0.055747]
[1731877018531,0.10997246,89686.0,89685.0,0.055747]
[1731877020630,0.10997246,89686.0,89680.0,0.055749]
[1731877020631,0.05575,89681.0,89680.0,0.055749]
[1731877020834,0.05575,89681.0,89670.0,0.11669374]
[1731877020835,0.05422446,89681.0,89670.0,0.11669374]
[1731877021032,0.416556,89672.0,89671.0,0.151076]
[1731877021540,0.47078853,89672.0,89671.0,0.055756]
[1731877021735,0.416556,89672.0,89671.0,0.055756]
[1731877021937,0.22071224,89672.0,89671.0,0.055756]
[1731877022238,0.1099888,89672.0,89671.0,0.055756]
[1731877022437,0.58152807,89672.0,89671.0,0.055756]
[1731877022937,0.416556,89672.0,89671.0,0.055756]
[1731877023337,0.58145888,89672.0,89671.0,0.055756]
[1731877023733,0.416556,89672.0,89671.0,0.055756]
[1731877024842,0.055756,89672.0,89671.0,0.055756]
[1731877025137,0.416556,89672.0,89671.0,0.055756]
[1731877025342,0.055756,89672.0,89671.0,0.055756]
[1731877025539,0.10998892,89672.0,89671.0,0.055756]
[1731877029748,0.16486026,89675.0,89669.0,0.11763415]
[1731877029945,0.055752,89678.0,89674.0,0.08589374]
[1731877030247,0.16486413,89676.0,89674.0,0.18121374]
[1731877030448,0.16486413,89677.0,89674.0,0.18121374]
[1731877030648,0.16486413,89677.0,89676.0,0.055753]
[1731877030840,0.16486413,89677.0,89674.0,0.18121374]
[1731877030841,0.16486413,89678.0,89677.0,0.055752]
[1731877031042,0.05575,89682.0,89679.0,0.055751]
[1731877031246,0.25377612,89682.0,89679.0,0.055751]
[1731877031449,0.05422788,89681.0,89679.0,0.055751]
[1731877031749,0.05422788,89680.0,89679.0,0.055751]
[1731877032147,0.05422788,89681.0,89679.0,0.055751]
[1731877032640,0.05422788,89681.0,89674.0,0.18121374]
[1731877032838,0.16480879,89676.0,89675.0,0.055754]
[1731877033446,0.05422788,89681.0,89675.0,0.055754]
[1731877033447,0.16482406,89681.0,89675.0,0.055754]
[1731877033645,0.00056001,89685.0,89684.0,0.055748]
[1731877033839,0.00056001,89685.0,89684.0,0.14164174]
[1731877034151,0.3608,89693.0,89692.0,0.055743]
[1731877034349,0.36140001,89693.0,89692.0,0.14163674]
[1731877035048,0.3608,89693.0,89692.0,0.14163674]
[1731877039755,0.0331,89698.0,89692.0,0.14163674]
[1731877039953,0.3608,89697.0,89693.0,0.055742]
[1731877040746,0.52562406,89697.0,89693.0,0.055742]
[1731877042159,0.3608,89697.0,89693.0,0.055742]
[1731877042849,0.055741,89695.0,89693.0,0.055742]
[1731877043045,0.05575,89681.0,89679.0,0.14164474]
[1731877043248,0.055748,89684.0,89681.0,0.055749]
[1731877043451,0.055748,89684.0,89680.0,0.09524]
[1731877043452,0.055748,89684.0,89683.0,0.055749]
[1731877044355,0.16482406,89688.0,89680.0,0.09524]
[1731877044746,0.16482406,89688.0,89687.0,0.055746]
[1731877045254,0.22057006,89688.0,89687.0,0.055746]
[1731877045460,0.055746,89688.0,89687.0,0.055746]
[1731877045757,0.3608,89688.0,89681.0,0.05575]
[1731877046058,0.055749,89682.0,89681.0,0.05575]
[1731877046646,0.055749,89682.0,89680.0,0.09524]
[1731877046647,0.16477377,89686.0,89685.0,0.055747]
[1731877047058,0.22052077,89686.0,89685.0,0.055747]
[1731877048255,0.16477377,89687.0,89681.0,0.08589374]
[1731877048464,0.3608,89688.0,89687.0,0.055746]
[1731877048772,0.16480441,89688.0,89687.0,0.055746]
[1731877048959,0.03119475,89689.0,89687.0,0.055746]
[1731877048960,0.03119475,89689.0,89688.0,0.055746]
[1731877049155,0.16480441,89689.0,89688.0,0.14163974]
[1731877049459,0.16480441,89692.0,89691.0,0.055744]
[1731877049766,0.23112612,89698.0,89692.0,0.055743]
[1731877049767,0.16480441,89693.0,89692.0,0.055743]
[1731877049965,0.16480441,89693.0,89692.0,0.150983]
[1731877050859,0.055741,89695.0,89693.0,0.055742]
[1731877051159,0.05422033,89694.0,89693.0,0.055742]
[1731877051552,0.05422033,89694.0,89692.0,0.09524]
[1731877051553,0.10996233,89694.0,89692.0,0.09524]
[1731877051753,0.1099625,89693.0,89691.0,0.09524]
[1731877051960,0.0542205,89692.0,89691.0,0.150984]
[1731877052671,0.055742,89693.0,89692.0,0.055743]
[1731877052857,0.10996261,89693.0,89692.0,0.055743]
[1731877055665,0.055742,89693.0,89692.0,0.055743]
[1731877059273,0.39257951,89697.0,89692.0,0.08589374]
[1731877059473,0.39257951,89697.0,89696.0,0.055741]
[1731877059474,0.4477595,89697.0,89696.0,0.055741]
[1731877059767,0.47076033,89697.0,89696.0,0.055741]
[1731877062767,0.60663775,89697.0,89696.0,0.055741]
[1731877066775,0.6067497,89697.0,89696.0,0.055741]
[1731877067486,0.63703743,89697.0,89672.0,0.2003524]
[1731877067768,0.055748,89684.0,89683.0,0.09508]
[1731877067974,0.24609169,89684.0,89683.0,0.09508]
[1731877070277,0.10996898,89684.0,89683.0,0.09508]
[1731877070765,0.10996898,89684.0,89675.0,0.00167254]
[1731877070766,0.05422098,89684.0,89675.0,0.00167254]
[1731877071072,0.58157591,89676.0,89675.0,0.00167254]
[1731877071267,0.416553,89676.0,89675.0,0.00167254]
[1731877071673,0.47078592,89676.0,89675.0,0.00167254]
[1731877071974,0.055761,89663.0,89662.0,0.055761]
[1731877072162,0.055761,89663.0,89662.0,0.18326016]
[1731877072568,0.41656,89666.0,89665.0,0.05576]
[1731877073270,0.055761,89663.0,89662.0,0.12749916]
[1731877073869,0.3608,89666.0,89655.0,0.055766]
[1731877074069,0.055764,89659.0,89655.0,0.055766]
[1731877074269,0.055764,89659.0,89657.0,0.055765]
[1731877074474,0.055764,89659.0,89658.0,0.0558657]
[1731877074670,0.3608,89666.0,89658.0,0.0001017]
[1731877074972,0.16496847,89670.0,89669.0,0.055757]
[1731877075664,0.055756,89671.0,89669.0,0.055757]
[1731877075975,0.055757,89670.0,89669.0,0.055757]
[1731877076771,0.055759,89667.0,89664.0,0.05576]
[1731877076966,0.41656,89665.0,89664.0,0.05576]
[1731877077472,0.05576,89665.0,89664.0,0.05576]
[1731877078179,0.055757,89670.0,89667.0,0.055758]
[1731877078473,0.3608,89675.0,89667.0,0.055758]
[1731877078474,0.055758,89669.0,89667.0,0.055758]
[1731877078876,0.055758,89669.0,89668.0,0.055758]
[1731877079881,0.055754,89674.0,89663.0,0.150881]
[1731877080082,0.05576,89664.0,89663.0,0.150881]
[1731877080868,0.08906,89664.0,89663.0,0.150881]
[1731877081273,0.08906,89664.0,89663.0,0.09512]
[1731877081480,0.11996,89664.0,89663.0,0.09512]
[1731877083684,0.15148194,89664.0,89663.0,0.09512]
[1731877083879,0.51228194,89664.0,89663.0,0.09512]
[1731877086581,0.05576,89664.0,89663.0,0.09512]
[1731877086789,0.05576,89664.0,89663.0,0.150881]
[1731877093291,0.05576,89664.0,89663.0,0.09512]
[1731877093993,0.18736343,89664.0,89663.0,0.09512]
[1731877094200,0.05576,89664.0,89663.0,0.09512]
[1731877094390,0.13160343,89664.0,89663.0,0.09512]
[1731877094596,0.13160343,89665.0,89663.0,0.09512]
[1731877094791,0.13160343,89665.0,89664.0,0.05576]
[1731877095398,0.3608,89667.0,89666.0,0.055759]
[1731877096287,0.3608,89667.0,89666.0,0.089059]
[1731877096288,0.49250437,89667.0,89666.0,0.089059]
[1731877096904,0.3608,89667.0,89666.0,0.089059]
[1731877097202,0.13170437,89669.0,89668.0,0.055758]
[1731877097398,0.086454,89674.0,89670.0,0.055757]
[1731877097399,0.22062143,89673.0,89670.0,0.055757]
[1731877098205,0.055755,89672.0,89670.0,0.055757]
[1731877098400,0.055755,89672.0,89671.0,0.095]
[1731877098586,0.22062143,89672.0,89671.0,0.095]
[1731877098997,0.22062143,89672.0,89671.0,0.150756]
[1731877099498,0.055755,89672.0,89671.0,0.150756]
[1731877099803,0.055758,89669.0,89667.0,0.055758]
[1731877100104,0.22073958,89669.0,89668.0,0.150758]
[1731877100305,0.10999236,89669.0,89668.0,0.150758]
[1731877100602,0.0307,89674.0,89668.0,0.150758]
[1731877100603,0.086454,89674.0,89671.0,0.055756]
[1731877100800,0.05423268,89673.0,89671.0,0.055756]
[1731877101004,0.05423268,89673.0,89672.0,0.055755]
[1731877101401,0.05423268,89673.0,89668.0,0.095]
[1731877101402,0.05423268,89673.0,89669.0,0.055757]